[Event "Romanian Rapid Open 2022"]
[Site "Sebes"]
[Date "2022.12.02"]
[Round "2.40"]
[White "Schmit, Andrei-Marian"]
[Black "Chicarosie, Ioana-Bianca"]
[Result "1-0"]
[ECO "E61"]
[WhiteElo "1323"]
[BlackElo "1815"]
[Annotator "NA RC COMBH"]
[PlyCount "95"]
[EventDate "2022.12.02"]
[EventType "rapid"]
[EventCountry "ROU"]
[SourceTitle "playchess.com"]
[Source "ChessBase"]
[SourceQuality "1"]
[TimeControl "600+5"]

1. d4 {[%emt 0:00:01]} Nf6 {[%emt 0:00:04]} 2. Nf3 {[%emt 0:00:02]} g6 {[%emt 0:00:05]} 3. Bf4 {[%emt 0:00:02]} Bg7 {[%emt 0:00:13]} 4. e3 {[%emt 0:00:02]} d6 {[%emt 0:00:03]} 5. Be2 {[%emt 0:00:04]} O-O {[%emt 0:00:05]} 6. O-O {[%emt 0:00:03]} Nbd7 {[%emt 0:00:04]} 7. c4 {[%emt 0:00:17]} c5 {[%emt 0:00:16]} 8. Nc3 {[%emt 0:00:12]} Re8 {[%emt 0:01:04]} 9. h3 {[%emt 0:00:09]} b6 {[%emt 0:00:43]} 10. Re1 {[%emt 0:00:32]} Bb7 {[%emt 0:00:14]} 11. d5 {[%emt 0:00:27]} h6 {[%emt 0:02:46]} 12. Rc1 {[%emt 0:00:10]} Nf8 {[%emt 0:01:12]} 13. a3 {[%emt 0:01:36]} g5 {[%emt 0:01:18]} 14. Bg3 {[%emt 0:00:22]} Ng6 {[%emt 0:00:12]} 15. Bd3 {[%emt 0:00:31]} Bc8 {[%emt 0:00:41]} 16. Bxg6 {[%emt 0:00:45]} fxg6 {[%emt 0:00:00]} 17. e4 {[%emt 0:01:17]} g4 {[%emt 0:00:48]} 18. hxg4 {[%emt 0:00:57]} Bxg4 {[%emt 0:00:02]} 19. Qd3 {[%emt 0:00:32]} Nh5 {[%emt 0:00:26]} 20. Bh2 {[%emt 0:00:23]} Rf8 {[%emt 0:00:39]} 21. Re3 {[%emt 0:00:52]} Nf4 {[%emt 0:00:28]} 22. Bxf4 {[%emt 0:00:15]} Rxf4 {[%emt 0:00:00]} 23. Ne2 {[%emt 0:00:18]} Rf7 {[%emt 0:00:07]} 24. e5 {[%emt 0:00:22]} Bxf3 {[%emt 0:00:15]} 25. e6 {[%emt 0:00:29]} Rf5 {[%emt 0:00:14]} 26. Rxf3 {[%emt 0:00:07]} Rxf3 {[%emt 0:00:01]} 27. Qxf3 {[%emt 0:00:01]} Bxb2 {[%emt 0:00:03]} 28. Rd1 {[%emt 0:00:21]} Qf8 {[%emt 0:00:02]} 29. Qg3 {[%emt 0:00:21]} Kh7 {[%emt 0:00:08]} 30. Nf4 {[%emt 0:00:15]} Qg7 {[%emt 0:00:04]} 31. Rd3 {[%emt 0:00:10]} Be5 {[%emt 0:00:02]} 32. Qf3 {[%emt 0:00:07]} Rf8 {[%emt 0:00:01]} 33. g3 {[%emt 0:00:05]} Kh8 {[%emt 0:00:04]} 34. Qg4 {[%emt 0:00:08]} Qf6 {[%emt 0:00:08]} 35. Nxg6+ {[%emt 0:00:04]} Kh7 {[%emt 0:00:16]} 36. Nxf8+ {[%emt 0:00:02]} Qxf8 {[%emt 0:00:01]} 37. Rf3 {[%emt 0:00:03]} Qg8 {[%emt 0:00:07]} 38. Rf7+ {[%emt 0:00:08]} Kh8 {[%emt 0:00:01]} 39. Qxg8+ {[%emt 0:00:04]} Kxg8 {[%emt 0:00:01]} 40. Rxe7 {[%emt 0:00:01]} Kf8 {[%emt 0:00:05]} 41. Rxa7 {[%emt 0:00:03]} Ke8 {[%emt 0:00:09]} 42. Rb7 {[%emt 0:00:03]} Bb2 {[%emt 0:00:11]} 43. Rxb6 {[%emt 0:00:02]} Bxa3 {[%emt 0:00:01]} 44. Rxd6 {[%emt 0:00:02]} Bb4 {[%emt 0:00:02]} 45. Rd7 {[%emt 0:00:02]} Ba5 {[%emt 0:00:03]} 46. d6 {[%emt 0:00:03]} Bb4 {[%emt 0:00:09]} 47. Re7+ {[%emt 0:00:04]} Kd8 {[%emt 0:00:01]} 48. Rh7 {[%emt 0:00:03]} 1-0

[Event "Romanian Rapid Open 2022"]
[Site "Sebes"]
[Date "2022.12.02"]
[Round "3.1"]
[White "Manea, Alexandru"]
[Black "Jianu, Vlad-Cristian"]
[Result "0-1"]
[ECO "B10"]
[WhiteElo "2339"]
[BlackElo "2516"]
[Annotator "TA"]
[PlyCount "58"]
[EventDate "2022.12.02"]
[EventType "rapid"]
[EventCountry "ROU"]
[SourceTitle "playchess.com"]
[Source "ChessBase"]
[SourceQuality "1"]
[TimeControl "600+5"]

{[%evp 9,58,8,19,8,23,0,0,0,0,-13,0,0,6,3,20,0,9,0,0,0,41,53,49,41,39,35,39,0,0,0,33,29,46,0,66,0,0,-276,-259,-300,-289,-278,-226,-296,-152,-319,-304,-310,-295,-537,-518]} 1. e4 {[%emt 0:00:02]} c6 {[%emt 0:00:02]} 2. Nf3 {[%emt 0:00:03]} d5 {[%emt 0:00:01]} 3. d3 {[%emt 0:00:03]} g6 {[%emt 0:00:01]} 4. e5 {[%emt 0:00:02]} Bg7 {[%emt 0:00:02]} 5. d4 {[%emt 0:00:02]} f6 {[%emt 0:00:18]} 6. exf6 {[%emt 0:00:06] B10: Caro-Kann: 2 d3 and 2 c4.} Nxf6 {[%emt 0:00:02]} 7. Bd3 {[%emt 0:00:34]} O-O {[%emt 0:00:03]} 8. O-O {[%emt 0:00:02] The position is equal.} c5 {[%emt 0:00:18]} 9. c3 {[%emt 0:01:03]} Nc6 {[%emt 0:00:05] [#]} 10. dxc5 $146 {[%emt 0:02:00]} ({Predecessor:} 10. h3 Nh5 11. Be3 Nf4 12. Be2 Nxe2+ 13. Qxe2 c4 14. Re1 Bf5 15. Bg5 Bf6 16. Bh6 {1-0 (68) Altun,A (2297)-Aydin,G (2069) Ayvalik 2022}) 10... e5 {[%emt 0:00:14] Threatens to win with ...e4.} 11. Be2 {[%emt 0:00:02]} a5 {[%emt 0:00:31]} (11... Ne4 {keeps more tension.} 12. b4 a5 13. b5 Ne7) 12. Bg5 {[%emt 0:00:06]} (12. Na3 {with more complications.} Ne4 13. Be3 d4 14. cxd4 exd4 15. Qb3+) 12... Be6 {[%emt 0:00:11]} 13. Nbd2 {[%emt 0:00:01]} (13. Na3 $5) 13... Qe7 {[%emt 0:00:18]} 14. Bb5 {[%emt 0:02:29]} e4 {[%emt 0:00:54]} 15. Nd4 {[%emt 0:00:07]} Bd7 {[%emt 0:00:04]} 16. a4 {[%emt 0:00:52]} Qxc5 {[%emt 0:00:14]} 17. N2b3 {[%emt 0:00:03]} Qd6 {[%emt 0:00:07]} 18. h3 {[%emt 0:00:08] Inhibits Ng4.} (18. Be2 {simplifies} Nxd4 19. Nxd4 Rf7 20. Be3) 18... Nh5 {[%emt 0:03:24]} 19. c4 {[%emt 0:02:45]} Qe5 {[%emt 0:00:09]} 20. Be3 {[%emt 0:00:08]} Nf4 {[%emt 0:00:10][%cal Od7h3]} 21. cxd5 {[%emt 0:00:05]} (21. Ne2 $14 {deserves consideration.} Nd3 22. cxd5 Qxd5 23. Nc5 $1) 21... Nxd5 {[%emt 0:00:08]} (21... Nxd4 $11 22. Bxd7 Nde2+ 23. Kh1 Qxb2 24. Bxf4 Rxf4) 22. Nxc6 {[%emt 0:00:08]} (22. Bc4 $14) 22... bxc6 $11 {[%emt 0:00:03]} 23. Bd4 $2 {[%emt 0:00:00][%mdl 8192]} (23. Bc4 $1 $11 {and White has nothing to worry.}) 23... Qg5 $19 {[%emt 0:00:06][%cal Od7h3] Strongly threatening ...Bxh3!} 24. h4 {[%emt 0:00:51]} Qxh4 {[%emt 0:00:06]} 25. Bxg7 {[%emt 0:00:01]} Kxg7 {[%emt 0:00:16]} 26. Nc5 {[%emt 0:00:02]} Rf5 $40 {[%emt 0:01:12][%mdl 128] Black attacks with force.} (26... Bg4 $19 27. Qd4+ Qf6 28. Qxf6+ Nxf6) 27. Qd4+ {[%emt 0:00:09] [#]} (27. g3 $17 Qh3 28. Be2) 27... Kh6 $1 {[%emt 0:00:24][%cal Of5h5] ...Rh5! is the strong threat.} 28. g3 {[%emt 0:00:13]} (28. Nxd7 $2 {perishes.} Rh5 29. f3 Qh2+ 30. Kf2 e3+ 31. Ke1 cxb5 $19) 28... Qh3 {[%emt 0:00:19] And now ...Rh5 would win. Dancing on a razor blade.} 29. Qxe4 $2 {[%emt 0:00:09]} (29. Be2 Rg5 30. Qxe4) 29... Rh5 {[%emt 0:00:05] Weighted Error Value: White=0.55/Black=0.19 (very precise)} 0-1

[Event "Romanian Rapid Open 2022"]
[Site "Sebes"]
[Date "2022.12.02"]
[Round "3.2"]
[White "Ardelean, George-Catalin"]
[Black "Itkis, Boris"]
[Result "1-0"]
[ECO "A45"]
[WhiteElo "2473"]
[BlackElo "2343"]
[Annotator "TA"]
[PlyCount "95"]
[EventDate "2022.12.02"]
[EventType "rapid"]
[EventCountry "ROU"]
[SourceTitle "playchess.com"]
[Source "ChessBase"]
[SourceQuality "1"]
[TimeControl "600+5"]

{[%evp 9,95,0,16,6,12,16,2,7,7,7,45,0,44,50,64,60,70,47,64,36,34,50,32,40,38,5,7,0,30,13,15,18,29,22,24,27,27,22,25,22,20,31,25,18,63,31,40,33,63,0,9,0,733,723,695,362,637,630,526,629,617,568,534,464,451,458,451,454,447,435,435,417,443,443,528,443,442,420,447,423,439,425,400,373,529,442,592,575]} 1. d4 {[%emt 0:00:04]} Nf6 {[%emt 0:00:04]} 2. Bf4 {[%emt 0:00:03]} c5 {[%emt 0:00:05]} 3. e3 {[%emt 0:00:06]} d6 {[%emt 0:00:07]} 4. Nc3 {[%emt 0:00:19]} Nbd7 {[%emt 0:00:11]} 5. Nf3 {[%emt 0:00:34]} g6 {[%emt 0:00:20]} 6. Be2 {[%emt 0:00:46] A45: Trompowsky Attack.} Bg7 {[%emt 0:00:01]} 7. h3 {[%emt 0:00:25]} O-O {[%emt 0:00:03]} 8. O-O {[%emt 0:00:04] The position is equal.} a6 {[%emt 0:00:59]} 9. a4 {[%emt 0:00:07] Against b5} b6 {[%emt 0:00:19]} 10. Re1 {[%emt 0:00:24]} Bb7 {[%emt 0:00:06]} 11. d5 $1 {[%emt 0:00:02]} Rb8 {[%emt 0:00:46][%cal Ob6b5]} 12. e4 {[%emt 0:01:18] Inhibits b5. White is more active.} Ne8 {[%emt 0:00:20]} 13. Bf1 {[%emt 0:00:43]} Nc7 {[%emt 0:00:08]} 14. Bh2 {[%emt 0:00:27]} Ba8 {[%emt 0:00:15] [#]} 15. Qd2 $146 {[%emt 0:01:12]} ({Predecessor:} 15. e5 Nxe5 16. Nxe5 dxe5 17. Bxe5 Bxe5 18. Rxe5 Qd6 19. Qe1 e6 20. dxe6 Nxe6 21. Rd1 {1-0 (38) Karas,M (2284)-Chigaev,M (2631) Chess.com INT 2022}) 15... b5 {[%emt 0:00:10]} 16. axb5 {[%emt 0:00:16]} axb5 {[%emt 0:00:00]} 17. Rab1 {[%emt 0:00:06]} b4 {[%emt 0:00:02]} 18. Nd1 {[%emt 0:00:02]} Nb5 {[%emt 0:01:01]} 19. Ne3 {[%emt 0:00:07]} Nd4 {[%emt 0:00:37]} 20. Nxd4 {[%emt 0:00:10]} Bxd4 {[%emt 0:00:21]} 21. c3 {[%emt 0:00:24]} Bg7 {[%emt 0:00:08]} 22. Nc4 {[%emt 0:00:02]} Nb6 {[%emt 0:00:35]} 23. cxb4 {[%emt 0:00:13]} Nxc4 {[%emt 0:00:03]} 24. Bxc4 {[%emt 0:00:02] [#] Threatens to win with bxc5.} Rxb4 {[%emt 0:00:06]} 25. b3 {[%emt 0:00:01]} Bb7 {[%emt 0:00:03]} 26. e5 {[%emt 0:00:14]} Qb6 {[%emt 0:00:05]} 27. Qd3 {[%emt 0:00:36]} Ra8 {[%emt 0:00:25]} 28. Bg3 {[%emt 0:00:32]} h6 {[%emt 0:01:41]} 29. Bf4 {[%emt 0:00:22]} (29. Re3 $14) 29... Ba6 $11 {[%emt 0:00:10]} 30. Ra1 {[%emt 0:00:13] [#] Black must now prevent Bd2.} Bb7 $2 {[%emt 0:00:06][%mdl 8192] White stays focused until the end.} (30... Qd8 $11) 31. Rxa8+ $18 {[%emt 0:00:01]} Bxa8 {[%emt 0:00:01]} 32. e6 {[%emt 0:00:06] Strongly threatening exf7+.} Qd8 $2 {[%emt 0:00:26]} (32... f5 33. Bd2 Qb8 34. Bxb4 Qxb4) 33. exf7+ {[%emt 0:00:03]} Kxf7 {[%emt 0:00:01]} 34. Re6 {[%emt 0:00:13]} Bf6 {[%emt 0:00:05]} 35. Bxh6 {[%emt 0:00:05]} Bb7 {[%emt 0:00:01]} 36. Bd2 {[%emt 0:00:04]} Bc8 {[%emt 0:00:15]} 37. Bxb4 {[%emt 0:00:06]} cxb4 {[%emt 0:00:00]} 38. Re2 {[%emt 0:00:15]} Qa5 {[%emt 0:00:06]} 39. Re1 {[%emt 0:00:23] Prevents Qa1.} Qa2 {[%emt 0:00:12]} 40. Qe2 {[%emt 0:00:06]} Qa7 {[%emt 0:00:04]} 41. Bd3 {[%emt 0:00:12]} Qd4 {[%emt 0:00:16]} 42. Qe4 {[%emt 0:00:05]} Qxe4 {[%emt 0:00:03]} 43. Bxe4 {[%emt 0:00:01] KRB-KB} Bc3 {[%emt 0:00:10]} 44. Re2 {[%emt 0:00:15]} Kf6 {[%emt 0:00:04]} 45. Bd3 {[%emt 0:00:12]} Bd4 {[%emt 0:00:22]} 46. Kh2 {[%emt 0:00:19]} Bd7 {[%emt 0:00:12]} (46... Be5+ {might work better.} 47. g3 g5) 47. f4 {[%emt 0:00:03]} Bc8 {[%emt 0:00:25]} 48. g4 {[%emt 0:00:10] Weighted Error Value: White=0.23 (precise) /Black=0.30} 1-0

[Event "Romanian Rapid Open 2022"]
[Site "Sebes"]
[Date "2022.12.02"]
[Round "3.3"]
[White "Ciorgovean, Iustin"]
[Black "Gavrilescu, David"]
[Result "0-1"]
[ECO "E01"]
[WhiteElo "2319"]
[BlackElo "2523"]
[Annotator "TA"]
[PlyCount "66"]
[EventDate "2022.12.02"]
[EventType "rapid"]
[EventCountry "ROU"]
[SourceTitle "playchess.com"]
[Source "ChessBase"]
[SourceQuality "1"]
[TimeControl "600+5"]

{[%evp 9,66,0,23,26,25,16,16,25,16,24,38,37,48,35,32,31,35,23,43,32,32,34,43,0,0,0,0,-9,-4,-11,0,-25,-32,-26,-34,-25,-6,-15,-5,-33,-27,-54,0,-33,0,-521,-506,-2297,-2414,-1721,-1658,-29992,-29993,-29993,-29994,-29994,-29995,-29996,-29997]} 1. d4 {[%emt 0:00:01]} d5 {[%emt 0:00:02]} 2. c4 {[%emt 0:00:01]} e6 {[%emt 0:00:02]} 3. Nf3 {[%emt 0:00:01]} Nf6 {[%emt 0:00:02][%cal Bg8f6,Bf6e4,Be4d2][%mdl 32]} 4. g3 {[%emt 0:00:01]} Bb4+ {[%emt 0:00:02]} 5. Bd2 {[%emt 0:00:02]} Bd6 {[%emt 0:00:01]} 6. Bg2 {[%emt 0:00:08] E01: Catalan: Early deviations.} c6 {[%emt 0:00:02]} 7. O-O {[%emt 0:00:07]} Nbd7 {[%emt 0:00:02][%cal Bb8d7,Bd7f6,Bf6e4][%mdl 32]} 8. Bc3 {[%emt 0:00:40] The position is equal.} Ne4 {[%emt 0:00:21]} 9. Nbd2 {[%emt 0:00:10] [#]} Nxd2 $146 {[%emt 0:01:34]} ({Predecessor:} 9... Nxc3 10. bxc3 O-O 11. e4 dxe4 12. Nxe4 Be7 13. Re1 Qc7 14. a4 Rd8 15. Qc2 h6 {½-½ (33) Vrolijk,L (2476)-Bluebaum,M (2642) Germany 2022}) 10. Nxd2 {[%emt 0:00:19]} f5 $1 {[%emt 0:00:02] Inhibits e4.} 11. b4 {[%emt 0:00:19][%cal Bb2b4,Bb4b5][%mdl 32]} O-O {[%emt 0:00:24]} 12. e3 {[%emt 0:00:27]} Nf6 {[%emt 0:00:21]} 13. a4 {[%emt 0:00:46]} Bd7 {[%emt 0:00:18]} 14. b5 {[%emt 0:03:43]} Qe7 {[%emt 0:02:19]} 15. Qb3 {[%emt 0:00:57]} g5 {[%emt 0:00:05]} 16. Nf3 {[%emt 0:01:50]} Ne4 {[%emt 0:00:28]} 17. Ne5 {[%emt 0:00:14]} Bxe5 {[%emt 0:00:06]} 18. dxe5 {[%emt 0:00:02]} dxc4 {[%emt 0:00:03]} 19. Qb2 {[%emt 0:00:25]} Nxc3 {[%emt 0:00:26]} 20. Qxc3 {[%emt 0:00:02]} cxb5 {[%emt 0:00:12]} 21. Bxb7 {[%emt 0:00:44]} Rab8 {[%emt 0:00:18]} 22. Ba6 {[%emt 0:00:20]} Bc6 {[%emt 0:00:21] aiming for ...b4.} 23. Bxb5 {[%emt 0:00:06]} Bd5 {[%emt 0:00:02]} 24. Rac1 {[%emt 0:00:19]} Rbc8 $36 {[%emt 0:00:08][%mdl 2048] Black fights for an advantage.} 25. f3 {[%emt 0:00:10]} Qb7 {[%emt 0:00:07]} (25... Qc5 $15) 26. Qa5 {[%emt 0:00:09]} Bxf3 {[%emt 0:00:45] White must now prevent ...Bd5.} (26... Qb8 {simplifies} 27. f4 Rfd8 28. Rfd1 gxf4 29. exf4 a6) 27. Bxc4 {[%emt 0:00:01][%mdl 8192]} (27. Rxc4 $11 {and White stays safe.} Bd5 28. Ba6) 27... Qb2 $19 {[%emt 0:00:11][%csl Gf3][%cal Rb2g2] [#]} 28. Bxe6+ {[%emt 0:00:05]} (28. Rxf3 $142 Qxc1+ 29. Bf1) 28... Kh8 {[%emt 0:00:01][%csl Gf3][%cal Rb2g2]} 29. Rxf3 {[%emt 0:00:11]} Qxc1+ {[%emt 0:00:08]} 30. Rf1 {[%emt 0:00:04]} Qxe3+ {[%emt 0:00:02] Black mates.} 31. Kh1 {[%emt 0:00:02]} Qe4+ {[%emt 0:00:04]} 32. Kg1 {[%emt 0:00:01]} Rc2 {[%emt 0:00:06][%csl Gc2][%cal Re4g2]} 33. Qd5 {[%emt 0:00:11]} Qe2 {[%emt 0:00:11] Weighted Error Value: White=0.61/Black=0.07 (flawless)} ({Weaker is} 33... Qxa4 34. Qd6 Qe8 35. Bxf5 $17) 0-1

[Event "Romanian Rapid Open 2022"]
[Site "Sebes"]
[Date "2022.12.02"]
[Round "3.4"]
[White "Miron, Lucian-Costin"]
[Black "Cosma, Elena-Luminita"]
[Result "1-0"]
[ECO "E04"]
[WhiteElo "2510"]
[BlackElo "2244"]
[Annotator "TA"]
[PlyCount "103"]
[EventDate "2022.12.02"]
[EventType "rapid"]
[EventCountry "ROU"]
[SourceTitle "playchess.com"]
[Source "ChessBase"]
[SourceQuality "1"]
[TimeControl "600+5"]

{[%evp 23,103,16,20,0,14,0,0,0,4,-35,-20,-83,-12,-54,-12,-16,-5,-12,-9,-13,27,36,33,20,29,31,28,36,31,33,36,37,39,8,10,10,8,14,21,0,0,0,0,-57,-59,-54,-45,-58,0,0,0,-82,-35,-66,-69,-54,0,0,38,53,53,7,124,139,380,376,502,467,12835,12837,12841,12841,12845,12845,12847,12843,12849,12845,12849,12844,12845,12844]} 1. Nf3 {[%emt 0:00:02]} d5 {[%emt 0:00:00]} 2. g3 {[%emt 0:00:01]} c5 {[%emt 0:00:01]} 3. Bg2 {[%emt 0:00:09]} Nc6 {[%emt 0:00:01]} 4. d4 {[%emt 0:00:21]} e6 {[%emt 0:00:02]} 5. O-O {[%emt 0:00:11]} Nf6 {[%emt 0:00:02]} 6. c4 {[%emt 0:00:35]} dxc4 {[%emt 0:00:02]} 7. dxc5 {[%emt 0:00:21]} Qxd1 {[%emt 0:00:04]} 8. Rxd1 {[%emt 0:00:01]} Bxc5 {[%emt 0:00:02]} 9. Nbd2 {[%emt 0:00:02]} c3 {[%emt 0:00:01]} 10. bxc3 {[%emt 0:00:01][%cal Bb2c3,Bc3c4,Bc4c5][%mdl 32]} O-O {[%emt 0:00:19]} 11. Nb3 {[%emt 0:00:10]} Be7 {[%emt 0:00:57]} 12. c4 {[%emt 0:00:51]} Bd7 {[%emt 0:00:17]} 13. Bf4 {[%emt 0:00:25] E04: Open Catalan: 5 Nf3.} Rac8 {[%emt 0:02:24]} 14. c5 {[%emt 0:00:01]} Rfd8 {[%emt 0:00:42] [#]} 15. Ne1 $146 {[%emt 0:02:38] The position is equal.} ({Predecessor:} 15. Rac1 Nd5 16. Bd2 b6 17. Bf1 bxc5 18. Nxc5 Bxc5 19. Rxc5 Nd4 20. Rdc1 Nxf3+ 21. exf3 Rxc5 22. Rxc5 {½-½ (48) Stefanova,A (2509)-Tan,Z (2504) Huaian 2016}) 15... e5 {[%emt 0:00:29]} 16. Be3 {[%emt 0:01:06]} Be6 {[%emt 0:00:18]} (16... Bg4 $5 {[%cal Rg4e2]}) 17. Nd3 {[%emt 0:00:02]} (17. Rxd8+ $11 {remains equal.} Bxd8 18. Nd3) 17... Bd5 {[%emt 0:00:08]} (17... Nd5 $17 18. Bd2 f5) 18. Rab1 {[%emt 0:00:19]} Bxg2 {[%emt 0:00:29]} (18... e4 $5 {[%cal Re4d3]} 19. Nf4 Bxb3 20. axb3 g5 $15) 19. Kxg2 {[%emt 0:00:02]} Nd5 {[%emt 0:00:12] And now ...Nc3 would win.} 20. Bd2 {[%emt 0:00:10] Prevents Nc3.} e4 {[%emt 0:00:45]} 21. Nf4 {[%emt 0:00:07]} Bf6 {[%emt 0:00:04]} 22. Nxd5 {[%emt 0:00:21]} Rxd5 {[%emt 0:00:03]} 23. Be3 {[%emt 0:00:00]} Rcd8 {[%emt 0:01:14]} 24. Rxd5 {[%emt 0:00:03]} Rxd5 {[%emt 0:00:01]} 25. Nd2 {[%emt 0:00:01]} Bd4 {[%emt 0:00:01] White must now prevent ...Bxe3.} 26. Nxe4 {[%emt 0:00:08]} Bxe3 {[%emt 0:00:02]} 27. fxe3 $14 {[%emt 0:00:04][%mdl 4096] Endgame KRN-KRN} f5 {[%emt 0:01:04]} 28. Ng5 {[%emt 0:00:01]} h6 {[%emt 0:00:36]} 29. Nf3 {[%emt 0:01:23]} Rxc5 {[%emt 0:00:21]} 30. Rxb7 {[%emt 0:00:02]} Rc2 {[%emt 0:00:11][%csl LRa2,LRe2]} 31. Rc7 {[%emt 0:00:42] aiming for Kf2.} Rxe2+ {[%emt 0:00:48]} 32. Kf1 {[%emt 0:00:01]} Rxe3 {[%emt 0:00:12]} 33. Rc8+ {[%emt 0:00:48]} (33. Nh4 $11 Nd4 34. Rxa7) 33... Kh7 $1 $15 {[%emt 0:00:20]} 34. Kf2 {[%emt 0:00:02]} Re6 {[%emt 0:00:04]} 35. Rc7 {[%emt 0:00:48]} a5 {[%emt 0:00:13]} (35... a6 $1 $15) 36. h4 $11 {[%emt 0:00:09]} Ne5 {[%emt 0:00:20]} 37. Nd4 {[%emt 0:00:08] [#]} (37. Nxe5 $1 $11 Rxe5 38. Ra7) 37... Ng4+ {[%emt 0:00:09]} (37... Rd6 $1 $17 {[%cal Rd6d4]} 38. Ke3 (38. Nxf5 Rf6 $17) (38. Rxg7+ $2 Kh8 $17) 38... Ng4+ 39. Kd3 Rd5) 38. Kf3 {[%emt 0:00:02]} Re3+ {[%emt 0:00:01]} 39. Kg2 {[%emt 0:00:09]} Re4 {[%emt 0:00:05]} ({Better is} 39... Kg6 $15 40. h5+ Kf6) 40. Nxf5 {[%emt 0:00:11]} h5 {[%emt 0:00:13]} 41. Rxg7+ {[%emt 0:00:14]} Kh8 {[%emt 0:00:01] ...Re5 is the strong threat.} 42. Ra7 {[%emt 0:00:12]} (42. Rg5 $14 Nf6 43. Kf3) 42... Re2+ {[%emt 0:00:01]} (42... Ra4 $1 $11 {keeps the balance.}) 43. Kf3 $16 {[%emt 0:00:03]} Rxa2 $2 {[%emt 0:00:06] [#] Black cannot hold the game after this.} (43... Rf2+ $16 44. Ke4 Nf6+ 45. Ke5 Ng4+ 46. Ke6 Rxa2) 44. Kf4 $1 $18 {[%emt 0:00:01]} Rf2+ {[%emt 0:00:12]} 45. Kg5 {[%emt 0:00:02] White is clearly winning.} Kg8 {[%emt 0:00:02]} (45... Rb2 $142 46. Kxh5 Nf6+ 47. Kg6 Rb6 48. Ra8+ Ng8+ 49. Kg5 Rb7) 46. Rxa5 {[%emt 0:00:14]} Kf8 {[%emt 0:00:02]} 47. Kxh5 {[%emt 0:00:07]} Nf6+ {[%emt 0:00:04]} 48. Kg6 {[%emt 0:00:01]} Ne8 {[%emt 0:00:02]} 49. Ra8 {[%emt 0:00:02]} Rf3 {[%emt 0:00:01]} 50. g4 {[%emt 0:00:06]} Rf4 {[%emt 0:00:15]} 51. Kg5 {[%emt 0:00:18]} Rb4 {[%emt 0:00:06]} 52. Nd6 {[%emt 0:00:08] Weighted Error Value: White=0.20 (precise) /Black=0.33} 1-0

[Event "Romanian Rapid Open 2022"]
[Site "Sebes"]
[Date "2022.12.02"]
[Round "3.5"]
[White "Filip, Andrei"]
[Black "Costachi, Mihnea"]
[Result "1/2-1/2"]
[ECO "C54"]
[WhiteElo "2331"]
[BlackElo "2476"]
[Annotator "TA"]
[PlyCount "64"]
[EventDate "2022.12.02"]
[EventType "rapid"]
[EventCountry "ROU"]
[SourceTitle "playchess.com"]
[Source "ChessBase"]
[SourceQuality "1"]
[TimeControl "600+5"]

{[%evp 13,64,12,11,13,18,22,34,27,47,18,49,35,53,51,45,47,43,41,83,38,52,0,61,59,56,18,30,30,26,31,37,22,27,-40,-50,-46,-49,-37,0,0,74,50,47,57,0,47,50,0,0,0,39,0,0]} 1. e4 {[%emt 0:00:02]} e5 {[%emt 0:00:01]} 2. Nf3 {[%emt 0:00:06]} Nc6 {[%emt 0:00:01]} 3. Bc4 {[%emt 0:00:02]} Bc5 {[%emt 0:00:12]} 4. c3 {[%emt 0:00:13]} Nf6 {[%emt 0:00:01][%cal Bg8f6,Bf6h5,Bh5f4,Bf4h3][%mdl 32]} 5. d3 {[%emt 0:00:01]} d6 {[%emt 0:00:07]} 6. a4 {[%emt 0:00:13]} a6 {[%emt 0:00:08]} 7. O-O {[%emt 0:00:07]} h6 {[%emt 0:00:03]} 8. Re1 $1 {[%emt 0:00:10] 8.Re1 scores better than 8.Nbd2. C54: Giuoco Piano: 4 c3 Nf6, main lines with 5 d4 and 5 d3.} (8. b4 {simplifies} Ba7 9. Be3 Bxe3 10. fxe3 O-O 11. Nbd2) 8... O-O {[%emt 0:00:08]} 9. Nbd2 {[%emt 0:00:19][%cal Bb1d2,Bd2f1,Bf1e3][%mdl 32] [#]} Nh5 $146 {[%emt 0:00:39]} ({Predecessor:} 9... Ne7 10. d4 exd4 11. Nb3 Ba7 12. Nbxd4 Ng6 13. Qc2 Re8 14. h3 c5 15. Nf5 Bxf5 16. exf5 Rxe1+ 17. Nxe1 {½-½ (35) Vachier Lagrave,M (2750)-Topalov,V (2730) Stavanger 2022}) 10. Nf1 {[%emt 0:01:01] White is slightly better.} Qf6 {[%emt 0:00:11]} 11. Be3 {[%emt 0:00:37]} (11. g3 {feels hotter.} Bg4 12. Kg2 Ne7 13. h3) 11... Bxe3 {[%emt 0:01:28]} 12. Nxe3 {[%emt 0:00:08]} Ne7 {[%emt 0:00:14]} 13. d4 {[%emt 0:01:58]} (13. g3 {simplifies} Be6 14. b3 Bxc4 15. bxc4 Qe6 16. d4) 13... Nf4 {[%emt 0:00:12]} 14. g3 {[%emt 0:01:51]} Nh3+ {[%emt 0:00:41]} 15. Kg2 {[%emt 0:00:02]} c6 {[%emt 0:00:35]} 16. Qc2 {[%emt 0:01:07]} Ng6 {[%emt 0:01:03]} 17. dxe5 {[%emt 0:00:14]} (17. Nf5 $14) 17... dxe5 {[%emt 0:00:55]} (17... Nxe5 $11 18. Nxe5 dxe5) 18. Nf5 {[%emt 0:00:07]} (18. Rad1 {simplifies} Ng5 19. Nxg5 Qxg5 20. Kh1) 18... Ne7 {[%emt 0:00:32][%cal Re7f5]} 19. N3h4 {[%emt 0:01:03]} ({Don't play} 19. Kxh3 Nxf5 20. Kg2 Nd6 $11) (19. Qe2 $5 {[%cal Rg2h3]}) 19... Ng5 {[%emt 0:00:31]} (19... Nxf5 {simplifies} 20. exf5 Ng5 21. f3 Bd7) 20. Nxe7+ {[%emt 0:00:30]} Qxe7 {[%emt 0:00:03]} 21. Nf5 {[%emt 0:00:22]} Bxf5 {[%emt 0:00:57]} 22. exf5 {[%emt 0:00:01] Threatens to win with f4.} Qc5 {[%emt 0:00:01] Against f4} 23. Qe2 {[%emt 0:00:13]} (23. h4 $11) 23... e4 $1 $15 {[%emt 0:00:41]} 24. f6 {[%emt 0:00:25]} Qf5 {[%emt 0:00:45] [#] White must now prevent ...Qh3+.} 25. Qh5 {[%emt 0:00:29] Against Qh3+} ({Wrong is} 25. h4 $2 Qh3+ 26. Kg1 Nf3+ $19) 25... g6 {[%emt 0:01:13]} 26. Qxh6 {[%emt 0:00:09][%csl Gf6][%cal Rh6g7] Active counter play!} Qxf6 {[%emt 0:00:01]} (26... Qf3+ $11 {remains equal.} 27. Kf1 Qh1+ 28. Ke2 Qf3+ 29. Kf1 Qh1+ 30. Ke2 Qf3+ 31. Kf1) 27. h4 $36 {[%emt 0:00:18][%mdl 2048] White is more active.} (27. Re3 $5 {[%cal Rh2h4]}) 27... Qf3+ {[%emt 0:00:23]} 28. Kf1 $1 {[%emt 0:00:07]} Qh1+ $1 {[%emt 0:00:16]} 29. Ke2 {[%emt 0:00:01]} Qf3+ {[%emt 0:00:01]} 30. Kf1 {[%emt 0:00:04] The board is on fire.} Qh1+ $1 {[%emt 0:00:22]} 31. Ke2 {[%emt 0:00:01]} Qf3+ {[%emt 0:00:01]} 32. Kf1 {[%emt 0:00:22]} Qh1+ $1 {[%emt 0:00:02] Weighted Error Value: White=0.19 (very precise) /Black=0.13 (very precise)} 1/2-1/2